Workbook

Sheet (826-old-an) (hidden)
A1: IF there is a tie in the scores, then award the highest rank to the largest weight
A3: Weight | B3: Score (Biggest best) | C3: Rank | E3: add | F3: RANK or RANK.EQ | G3: What we want is:
A4: 182 | B4: 5 | C4: =_xlfn.RANK.EQ(B4,$B$4:$B$14,0)+SUMPRODUCT(--(B4=$B$4:$B$14),--(A4<$A$4:$A$14)) -> 6 | F4: =_xlfn.RANK.EQ(B4,$B$4:$B$14,0) -> 6
A5: 184 | B5: 2 | C5: =_xlfn.RANK.EQ(B5,$B$4:$B$14,0)+SUMPRODUCT(--(B5=$B$4:$B$14),--(A5<$A$4:$A$14)) -> 10 | F5: =_xlfn.RANK.EQ(B5,$B$4:$B$14,0) -> 7
A6: 205 | B6: 7 | C6: 3 | E6: 1 | F6: 2 | G6: ="because '"&B6&"' has weight of '"&A6&"' we want rank of 3" -> because '7' has weight of '205' we want rank of 3
A7: 199 | B7: 1 | C7: 11 | F7: 11
A8: 188 | B8: 7 | C8: 5 | E8: 3 | F8: 2 | G8: ="because '"&B8&"' has weight of '"&A8&"' we want rank of 5" -> because '7' has weight of '188' we want rank of 5
A9: 185 | B9: 2 | C9: 8 | F9: 7
A10: 190 | B10: 7 | C10: 4 | E10: 2 | F10: 2 | G10: ="because '"&B10&"' has weight of '"&A10&"' we want rank of 4" -> because '7' has weight of '190' we want rank of 4
A11: 188 | B11: 2 | C11: 7 | F11: 7
A12: 207 | B12: 7 | C12: 2 | E12: 0 | F12: 2 | G12: ="because '"&B12&"' has weight of '"&A12&"' we want rank of 2" -> because '7' has weight of '207' we want rank of 2
A13: 187 | B13: 9 | C13: 1 | F13: 1
A14: 185 | B14: 2 | C14: 8 | F14: 7

Sheet (828)
A1: Sunshine 10 Ply | B1: 20.5 | C1: 15/05/08/10
A3: Individual Discounts | B3: 0.15 | C3: 0.05 | D3: 0.08 | E3: 0.1
A4: Compliments (Cost)
A6: Net Cost Equilvalent
A7: Wholesale Price
A9: Product | B9: Retail Price | C9: Series Discount (Enter each Discount as 2-digits) | H9: Net Cost Equilalent | I9: Wholesale Price
A10: Quad | B10: 30.25 | C10: 20/05/10/20
A11: Bellen | B11: 25.25 | C11: 10/10/08/18
A12: Carlota | B12: 21.95 | C12: 15/10/16/16
A13: Carlota Doublers | B13: 55.95 | C13: 05/05/08/08
A14: Majestic Beaut | B14: 23.95 | C14: 10/05/16/20
A15: Sunshine 5 Ply | B15: 19.25 | C15: 15/10/08/14
A16: Sunshine 10 Ply | B16: 20.5 | C16: 15/05/08/10
A17: Sunset | B17: 23.5 | C17: 15/15/14/08
A18: Sunbell | B18: 26.95 | C18: 15/05/10
A19: Flattop | B19: 20.95 | C19: 15/10
A20: Bellen Dancer | B20: 29.95 | C20: 10
A21: Bellen Wind Dancer | B21: 32.25 | C21: 15/05/18/06
A22: GelFast | B22: 21.5 | C22: 05/15/10/16
A23: Phenolic Sunshine | B23: 35.5 | C23: 10/05/16/16
A24: Icarus MTA | B24: 35.25 | C24: 20/15/06/16
A26: Product | B26: Retail Price | C26: Series Discount (Enter each Discount as 2-digits) | D26: Net Cost Equilalent | E26: Wholesale Price
A27: Quad | B27: 30.25 | C27: 20/05/10/20 | T27: =PRODUCT(1-MID(C27,CHOOSE(LEN(C27)-LEN(SUBSTITUTE(C27,"/",""))+1,1,{1,4},{1,4,7},{1,4,7,10}),2)/100) -> 0.5472
A28: Bellen | B28: 25.25 | C28: 10/10/08/18 | T28: =PRODUCT(1-MID(C28,CHOOSE(LEN(C28)-LEN(SUBSTITUTE(C28,"/",""))+1,1,{1,4},{1,4,7},{1,4,7,10}),2)/100) -> 0.611064
A29: Carlota | B29: 21.95 | C29: 15/10/16/16 | T29: =PRODUCT(1-MID(C29,CHOOSE(LEN(C29)-LEN(SUBSTITUTE(C29,"/",""))+1,1,{1,4},{1,4,7},{1,4,7,10}),2)/100) -> 0.539784
A30: Carlota Doublers | B30: 55.95 | C30: 05/05/08/08 | T30: =PRODUCT(1-MID(C30,CHOOSE(LEN(C30)-LEN(SUBSTITUTE(C30,"/",""))+1,1,{1,4},{1,4,7},{1,4,7,10}),2)/100) -> 0.763876
A31: Majestic Beaut | B31: 23.95 | C31: 10/05/16/20 | T31: =PRODUCT(1-MID(C31,CHOOSE(LEN(C31)-LEN(SUBSTITUTE(C31,"/",""))+1,1,{1,4},{1,4,7},{1,4,7,10}),2)/100) -> 0.57456
A32: Sunshine 5 Ply | B32: 19.25 | C32: 15/10/08/14 | T32: =PRODUCT(1-MID(C32,CHOOSE(LEN(C32)-LEN(SUBSTITUTE(C32,"/",""))+1,1,{1,4},{1,4,7},{1,4,7,10}),2)/100) -> 0.605268
A33: Sunshine 10 Ply | B33: 20.5 | C33: 15/05/08/10 | T33: =PRODUCT(1-MID(C33,CHOOSE(LEN(C33)-LEN(SUBSTITUTE(C33,"/",""))+1,1,{1,4},{1,4,7},{1,4,7,10}),2)/100) -> 0.66861
A34: Sunset | B34: 23.5 | C34: 15/15/14/08 | T34: =PRODUCT(1-MID(C34,CHOOSE(LEN(C34)-LEN(SUBSTITUTE(C34,"/",""))+1,1,{1,4},{1,4,7},{1,4,7,10}),2)/100) -> 0.571642
A35: Sunbell | B35: 26.95 | C35: 15/05/10/14 | T35: =PRODUCT(1-MID(C35,CHOOSE(LEN(C35)-LEN(SUBSTITUTE(C35,"/",""))+1,1,{1,4},{1,4,7},{1,4,7,10}),2)/100) -> 0.625005 | U35: 0.15 | V35: 0.05 | W35: 0.1 | X35: =PRODUCT(1-U35:W35) -> 0.72675
A36: Flattop | B36: 20.95 | C36: 15/10/16/14 | T36: =PRODUCT(1-MID(C36,CHOOSE(LEN(C36)-LEN(SUBSTITUTE(C36,"/",""))+1,1,{1,4},{1,4,7},{1,4,7,10}),2)/100) -> 0.552636 | U36: 0.15 | V36: 0.1 | X36: =PRODUCT(1-U36:W36) -> 0.765
A37: Bellen Dancer | B37: 29.95 | C37: 10/05/18/06 | T37: =PRODUCT(1-MID(C37,CHOOSE(LEN(C37)-LEN(SUBSTITUTE(C37,"/",""))+1,1,{1,4},{1,4,7},{1,4,7,10}),2)/100) -> 0.659034 | U37: 0.1 | X37: =PRODUCT(1-U37:W37) -> 0.9
A38: Bellen Wind Dancer | B38: 32.25 | C38: 15/05/18/06 | T38: =PRODUCT(1-MID(C38,CHOOSE(LEN(C38)-LEN(SUBSTITUTE(C38,"/",""))+1,1,{1,4},{1,4,7},{1,4,7,10}),2)/100) -> 0.622421
A39: GelFast | B39: 21.5 | C39: 05/15/10/16 | T39: =PRODUCT(1-MID(C39,CHOOSE(LEN(C39)-LEN(SUBSTITUTE(C39,"/",""))+1,1,{1,4},{1,4,7},{1,4,7,10}),2)/100) -> 0.61047
A40: Phenolic Sunshine | B40: 35.5 | C40: 10/05/16/16 | T40: =PRODUCT(1-MID(C40,CHOOSE(LEN(C40)-LEN(SUBSTITUTE(C40,"/",""))+1,1,{1,4},{1,4,7},{1,4,7,10}),2)/100) -> 0.603288
A41: Icarus MTA | B41: 35.25 | C41: 20/15/06/16 | T41: =PRODUCT(1-MID(C41,CHOOSE(LEN(C41)-LEN(SUBSTITUTE(C41,"/",""))+1,1,{1,4},{1,4,7},{1,4,7,10}),2)/100) -> 0.536928
A44: Product | B44: Retail Price | C44: Series Discount (Enter each Discount as 2-digits) | D44: Net Cost Equilalent | E44: Wholesale Price
A45: Quad | B45: 30.25 | C45: 20/05/10/20
A46: Bellen | B46: 25.25 | C46: 10/10/08/18
A47: Carlota | B47: 21.95 | C47: 15/10/16/16
A48: Carlota Doublers | B48: 55.95 | C48: 05/05/08/08
A49: Majestic Beaut | B49: 23.95 | C49: 10/05/16/20
A50: Sunshine 5 Ply | B50: 19.25 | C50: 15/10/08/14
A51: Sunshine 10 Ply | B51: 20.5 | C51: 15/05/08/10
A52: Sunset | B52: 23.5 | C52: 15/15/14/08 | F52: {1,4,7,10}
A53: Sunbell | B53: 26.95 | C53: 15/05/10 | F53: {1,4,7}
A54: Flattop | B54: 20.95 | C54: 15/10 | F54: {1,4}
A55: Bellen Dancer | B55: 29.95 | C55: 10 | F55: 1
A56: Bellen Wind Dancer | B56: 32.25 | C56: 15/05/18/06
A57: GelFast | B57: 21.5 | C57: 05/15/10/16
A58: Phenolic Sunshine | B58: 35.5 | C58: 10/05/16/16
A59: Icarus MTA | B59: 35.25 | C59: 20/15/06/16
E132: 1
E133: 4
E134: 7 | F134: =SUBSTITUTE($C$27,"/","^",ROWS(F$134:F134)) -> 20^05/10/20 | G134: =SEARCH("^",F134)-1 -> 2
E135: 10 | F135: =SUBSTITUTE($C$27,"/","^",ROWS(F$134:F135)) -> 20/05^10/20 | G135: =SEARCH("^",F135)-1 -> 5
B136: Series Discount | C136: 20/5/1/20 | D136: =REPLACE(C136,SEARCH("/",C136)+1,0,0) -> 20/05/1/20 | F136: =SUBSTITUTE($C$27,"/","^",ROWS(F$134:F136)) -> 20/05/10^20 | G136: =SEARCH("^",F136)-1 -> 8
C137: =MID($C$136,3*ROWS(C$137:C137)-2,2)/100 -> 0.2 | E137: =1+(ROWS(E$137:E137)-1)*3 -> 1 | F137: =1+(3*ROWS(E$137:E137)-3) -> 1 | G137: =1+3*ROWS(E$137:E137)-3 -> 1 | H137: =3*ROWS(E$137:E137)-2 -> 1
C138: =MID($C$136,3*ROWS(C$137:C138)-2,2)/100 ->  | E138: =1+(ROWS(E$137:E138)-1)*3 -> 4 | F138: =1+(3*ROWS(E$137:E138)-3) -> 4 | G138: =1+3*ROWS(E$137:E138)-3 -> 4 | H138: =3*ROWS(E$137:E138)-2 -> 4
C139: =MID($C$136,3*ROWS(C$137:C139)-2,2)/100 ->  | E139: =1+(ROWS(E$137:E139)-1)*3 -> 7 | F139: =1+(3*ROWS(E$137:E139)-3) -> 7 | G139: =1+3*ROWS(E$137:E139)-3 -> 7 | H139: =3*ROWS(E$137:E139)-2 -> 7
C140: =MID($C$136,3*ROWS(C$137:C140)-2,2)/100 ->  | E140: =1+(ROWS(E$137:E140)-1)*3 -> 10 | F140: =1+(3*ROWS(E$137:E140)-3) -> 10 | G140: =1+3*ROWS(E$137:E140)-3 -> 10 | H140: =3*ROWS(E$137:E140)-2 -> 10
D142: =SUBSTITUTE($C$136,"/","/0",{1,2,3}) -> 20/05/1/20 | F142: =INDEX(SUBSTITUTE($C$136,"/","/0",{1,2,3}),ROWS(F$142:F142)) -> 20/05/1/20
D143: 20/05/1/20 | F143: =INDEX(SUBSTITUTE($C$136,"/","/0",{1,2,3}),ROWS(F$142:F143)) -> 20/5/01/20
D144: 20/05/1/20 | F144: =INDEX(SUBSTITUTE($C$136,"/","/0",{1,2,3}),ROWS(F$142:F144)) -> 20/5/1/020
D145: 20/05/1/20 | F145: =INDEX(SUBSTITUTE($C$136,"/","/0",{1,2,3}),ROWS(F$142:F145)) -> 
D147: Series Discount | E147: 20/5/10/20
E148: =SUBSTITUTE($E$147,"/","/0",ROWS(E$148:E148)) -> 20/05/10/20 | F148: =INDEX(SUBSTITUTE($E$147,"/","/0",{1,2,3}),ROWS(F$148:F148)) -> 20/05/10/20
E149: =SUBSTITUTE($E$147,"/","/0",ROWS(E$148:E149)) -> 20/5/010/20 | F149: =INDEX(SUBSTITUTE($E$147,"/","/0",{1,2,3}),ROWS(F$148:F149)) -> 20/5/010/20
E150: =SUBSTITUTE($E$147,"/","/0",ROWS(E$148:E150)) -> 20/5/10/020 | F150: =INDEX(SUBSTITUTE($E$147,"/","/0",{1,2,3}),ROWS(F$148:F150)) -> 20/5/10/020

Sheet (828an)
A1: Sunshine 10 Ply | B1: 20.5 | C1: 15/05/08/10
A3: Individual Discounts | B3: 0.15 | C3: 0.05 | D3: 0.08 | E3: 0.1
A4: Compliments (Cost) | B4: =1-B3 -> 0.85 | C4: =1-C3 -> 0.95 | D4: 0.92 | E4: 0.9
A6: Net Cost Equilvalent | B6: =PRODUCT(B4:E4) -> 0.66861
A7: Wholesale Price | B7: =ROUND(B1*B6,2) -> 13.71
A9: Product | B9: Retail Price | C9: Series Discount (Enter each Discount as 2-digits) | H9: Net Cost Equilalent | I9: Wholesale Price
A10: Quad | B10: 30.25 | C10: 20/05/10/20 | D10: 20 | E10: 5 | F10: 10 | G10: 20 | H10: =PRODUCT(1-D10:G10/100) -> 0.5472 | I10: =ROUND(B10*PRODUCT(1-D10:G10/100),2) -> 16.55
A11: Bellen | B11: 25.25 | C11: 10/10/08/18 | D11: 10 | E11: 10 | F11: 8 | G11: 18 | H11: =PRODUCT(1-D11:G11/100) -> 0.611064 | I11: =ROUND(B11*PRODUCT(1-D11:G11/100),2) -> 15.43
A12: Carlota | B12: 21.95 | C12: 15/10/16/16 | D12: 15 | E12: 10 | F12: 16 | G12: 16 | H12: =PRODUCT(1-D12:G12/100) -> 0.539784 | I12: =ROUND(B12*PRODUCT(1-D12:G12/100),2) -> 11.85
A13: Carlota Doublers | B13: 55.95 | C13: 05/05/08/08 | D13: 5 | E13: 5 | F13: 8 | G13: 8 | H13: =PRODUCT(1-D13:G13/100) -> 0.763876 | I13: =ROUND(B13*PRODUCT(1-D13:G13/100),2) -> 42.74
A14: Majestic Beaut | B14: 23.95 | C14: 10/05/16/20 | D14: 10 | E14: 5 | F14: 16 | G14: 20 | H14: =PRODUCT(1-D14:G14/100) -> 0.57456 | I14: =ROUND(B14*PRODUCT(1-D14:G14/100),2) -> 13.76
A15: Sunshine 5 Ply | B15: 19.25 | C15: 15/10/08/14 | D15: 15 | E15: 10 | F15: 8 | G15: 14 | H15: =PRODUCT(1-D15:G15/100) -> 0.605268 | I15: =ROUND(B15*PRODUCT(1-D15:G15/100),2) -> 11.65
A16: Sunshine 10 Ply | B16: 20.5 | C16: 15/05/08/10 | D16: 15 | E16: 5 | F16: 8 | G16: 10 | H16: =PRODUCT(1-D16:G16/100) -> 0.66861 | I16: =ROUND(B16*PRODUCT(1-D16:G16/100),2) -> 13.71
A17: Sunset | B17: 23.5 | C17: 15/15/14/08 | D17: 15 | E17: 15 | F17: 14 | G17: 8 | H17: =PRODUCT(1-D17:G17/100) -> 0.571642 | I17: =ROUND(B17*PRODUCT(1-D17:G17/100),2) -> 13.43
A18: Sunbell | B18: 26.95 | C18: 15/05/10 | D18: 15 | E18: 5 | F18: 10 | H18: =PRODUCT(1-D18:G18/100) -> 0.72675 | I18: =ROUND(B18*PRODUCT(1-D18:G18/100),2) -> 19.59
A19: Flattop | B19: 20.95 | C19: 15/10 | D19: 15 | E19: 10 | H19: =PRODUCT(1-D19:G19/100) -> 0.765 | I19: =ROUND(B19*PRODUCT(1-D19:G19/100),2) -> 16.03
A20: Bellen Dancer | B20: 29.95 | C20: 10 | D20: 10 | H20: =PRODUCT(1-D20:G20/100) -> 0.9 | I20: =ROUND(B20*PRODUCT(1-D20:G20/100),2) -> 26.96
A21: Bellen Wind Dancer | B21: 32.25 | C21: 15/05/18/06 | D21: 15 | E21: 5 | F21: 18 | G21: 6 | H21: =PRODUCT(1-D21:G21/100) -> 0.622421 | I21: =ROUND(B21*PRODUCT(1-D21:G21/100),2) -> 20.07
A22: GelFast | B22: 21.5 | C22: 05/15/10/16 | D22: 5 | E22: 15 | F22: 10 | G22: 16 | H22: =PRODUCT(1-D22:G22/100) -> 0.61047 | I22: =ROUND(B22*PRODUCT(1-D22:G22/100),2) -> 13.13
A23: Phenolic Sunshine | B23: 35.5 | C23: 10/05/16/16 | D23: 10 | E23: 5 | F23: 16 | G23: 16 | H23: =PRODUCT(1-D23:G23/100) -> 0.603288 | I23: =ROUND(B23*PRODUCT(1-D23:G23/100),2) -> 21.42
A24: Icarus MTA | B24: 35.25 | C24: 20/15/06/16 | D24: 20 | E24: 15 | F24: 6 | G24: 16 | H24: =PRODUCT(1-D24:G24/100) -> 0.536928 | I24: =ROUND(B24*PRODUCT(1-D24:G24/100),2) -> 18.93
A26: Product | B26: Retail Price | C26: Series Discount (Enter each Discount as 2-digits) | D26: Net Cost Equilalent | E26: Wholesale Price
A27: Quad | B27: 30.25 | C27: 20/05/10/20 | D27: =PRODUCT(1-MID(C27,{1,4,7,10},2)/100) -> 0.5472 | E27: =ROUND(PRODUCT(1-MID(C27,{1,4,7,10},2)/100)*B27,2) -> 16.55 | T27: =PRODUCT(1-MID(C27,CHOOSE(LEN(C27)-LEN(SUBSTITUTE(C27,"/",""))+1,1,{1,4},{1,4,7},{1,4,7,10}),2)/100) -> 0.5472
A28: Bellen | B28: 25.25 | C28: 10/10/08/18 | D28: =PRODUCT(1-MID(C28,{1,4,7,10},2)/100) -> 0.611064 | E28: =ROUND(PRODUCT(1-MID(C28,{1,4,7,10},2)/100)*B28,2) -> 15.43 | T28: =PRODUCT(1-MID(C28,CHOOSE(LEN(C28)-LEN(SUBSTITUTE(C28,"/",""))+1,1,{1,4},{1,4,7},{1,4,7,10}),2)/100) -> 0.611064
A29: Carlota | B29: 21.95 | C29: 15/10/16/16 | D29: =PRODUCT(1-MID(C29,{1,4,7,10},2)/100) -> 0.539784 | E29: =ROUND(PRODUCT(1-MID(C29,{1,4,7,10},2)/100)*B29,2) -> 11.85 | T29: =PRODUCT(1-MID(C29,CHOOSE(LEN(C29)-LEN(SUBSTITUTE(C29,"/",""))+1,1,{1,4},{1,4,7},{1,4,7,10}),2)/100) -> 0.539784
A30: Carlota Doublers | B30: 55.95 | C30: 05/05/08/08 | D30: =PRODUCT(1-MID(C30,{1,4,7,10},2)/100) -> 0.763876 | E30: =ROUND(PRODUCT(1-MID(C30,{1,4,7,10},2)/100)*B30,2) -> 42.74 | T30: =PRODUCT(1-MID(C30,CHOOSE(LEN(C30)-LEN(SUBSTITUTE(C30,"/",""))+1,1,{1,4},{1,4,7},{1,4,7,10}),2)/100) -> 0.763876
A31: Majestic Beaut | B31: 23.95 | C31: 10/05/16/20 | D31: =PRODUCT(1-MID(C31,{1,4,7,10},2)/100) -> 0.57456 | E31: =ROUND(PRODUCT(1-MID(C31,{1,4,7,10},2)/100)*B31,2) -> 13.76 | T31: =PRODUCT(1-MID(C31,CHOOSE(LEN(C31)-LEN(SUBSTITUTE(C31,"/",""))+1,1,{1,4},{1,4,7},{1,4,7,10}),2)/100) -> 0.57456
A32: Sunshine 5 Ply | B32: 19.25 | C32: 15/10/08/14 | D32: =PRODUCT(1-MID(C32,{1,4,7,10},2)/100) -> 0.605268 | E32: =ROUND(PRODUCT(1-MID(C32,{1,4,7,10},2)/100)*B32,2) -> 11.65 | T32: =PRODUCT(1-MID(C32,CHOOSE(LEN(C32)-LEN(SUBSTITUTE(C32,"/",""))+1,1,{1,4},{1,4,7},{1,4,7,10}),2)/100) -> 0.605268
A33: Sunshine 10 Ply | B33: 20.5 | C33: 15/05/08/10 | D33: =PRODUCT(1-MID(C33,{1,4,7,10},2)/100) -> 0.66861 | E33: =ROUND(PRODUCT(1-MID(C33,{1,4,7,10},2)/100)*B33,2) -> 13.71 | T33: =PRODUCT(1-MID(C33,CHOOSE(LEN(C33)-LEN(SUBSTITUTE(C33,"/",""))+1,1,{1,4},{1,4,7},{1,4,7,10}),2)/100) -> 0.66861
A34: Sunset | B34: 23.5 | C34: 15/15/14/08 | D34: =PRODUCT(1-MID(C34,{1,4,7,10},2)/100) -> 0.571642 | E34: =ROUND(PRODUCT(1-MID(C34,{1,4,7,10},2)/100)*B34,2) -> 13.43 | T34: =PRODUCT(1-MID(C34,CHOOSE(LEN(C34)-LEN(SUBSTITUTE(C34,"/",""))+1,1,{1,4},{1,4,7},{1,4,7,10}),2)/100) -> 0.571642
A35: Sunbell | B35: 26.95 | C35: 15/05/10/14 | D35: =PRODUCT(1-MID(C35,{1,4,7,10},2)/100) -> 0.625005 | E35: =ROUND(PRODUCT(1-MID(C35,{1,4,7,10},2)/100)*B35,2) -> 16.84 | T35: =PRODUCT(1-MID(C35,CHOOSE(LEN(C35)-LEN(SUBSTITUTE(C35,"/",""))+1,1,{1,4},{1,4,7},{1,4,7,10}),2)/100) -> 0.625005 | U35: 0.15 | V35: 0.05 | W35: 0.1 | X35: =PRODUCT(1-U35:W35) -> 0.72675
A36: Flattop | B36: 20.95 | C36: 15/10/16/14 | D36: =PRODUCT(1-MID(C36,{1,4,7,10},2)/100) -> 0.552636 | E36: =ROUND(PRODUCT(1-MID(C36,{1,4,7,10},2)/100)*B36,2) -> 11.58 | T36: =PRODUCT(1-MID(C36,CHOOSE(LEN(C36)-LEN(SUBSTITUTE(C36,"/",""))+1,1,{1,4},{1,4,7},{1,4,7,10}),2)/100) -> 0.552636 | U36: 0.15 | V36: 0.1 | X36: =PRODUCT(1-U36:W36) -> 0.765
A37: Bellen Dancer | B37: 29.95 | C37: 10/05/18/06 | D37: =PRODUCT(1-MID(C37,{1,4,7,10},2)/100) -> 0.659034 | E37: =ROUND(PRODUCT(1-MID(C37,{1,4,7,10},2)/100)*B37,2) -> 19.74 | T37: =PRODUCT(1-MID(C37,CHOOSE(LEN(C37)-LEN(SUBSTITUTE(C37,"/",""))+1,1,{1,4},{1,4,7},{1,4,7,10}),2)/100) -> 0.659034 | U37: 0.1 | X37: =PRODUCT(1-U37:W37) -> 0.9
A38: Bellen Wind Dancer | B38: 32.25 | C38: 15/05/18/06 | D38: =PRODUCT(1-MID(C38,{1,4,7,10},2)/100) -> 0.622421 | E38: =ROUND(PRODUCT(1-MID(C38,{1,4,7,10},2)/100)*B38,2) -> 20.07 | T38: =PRODUCT(1-MID(C38,CHOOSE(LEN(C38)-LEN(SUBSTITUTE(C38,"/",""))+1,1,{1,4},{1,4,7},{1,4,7,10}),2)/100) -> 0.622421
A39: GelFast | B39: 21.5 | C39: 05/15/10/16 | D39: =PRODUCT(1-MID(C39,{1,4,7,10},2)/100) -> 0.61047 | E39: =ROUND(PRODUCT(1-MID(C39,{1,4,7,10},2)/100)*B39,2) -> 13.13 | T39: =PRODUCT(1-MID(C39,CHOOSE(LEN(C39)-LEN(SUBSTITUTE(C39,"/",""))+1,1,{1,4},{1,4,7},{1,4,7,10}),2)/100) -> 0.61047
A40: Phenolic Sunshine | B40: 35.5 | C40: 10/05/16/16 | D40: =PRODUCT(1-MID(C40,{1,4,7,10},2)/100) -> 0.603288 | E40: =ROUND(PRODUCT(1-MID(C40,{1,4,7,10},2)/100)*B40,2) -> 21.42 | T40: =PRODUCT(1-MID(C40,CHOOSE(LEN(C40)-LEN(SUBSTITUTE(C40,"/",""))+1,1,{1,4},{1,4,7},{1,4,7,10}),2)/100) -> 0.603288
A41: Icarus MTA | B41: 35.25 | C41: 20/15/06/16 | D41: =PRODUCT(1-MID(C41,{1,4,7,10},2)/100) -> 0.536928 | E41: =ROUND(PRODUCT(1-MID(C41,{1,4,7,10},2)/100)*B41,2) -> 18.93 | T41: =PRODUCT(1-MID(C41,CHOOSE(LEN(C41)-LEN(SUBSTITUTE(C41,"/",""))+1,1,{1,4},{1,4,7},{1,4,7,10}),2)/100) -> 0.536928
A44: Product | B44: Retail Price | C44: Series Discount (Enter each Discount as 2-digits) | D44: Net Cost Equilalent | E44: Wholesale Price
A45: Quad | B45: 30.25 | C45: 20/05/10/20 | D45: =PRODUCT(1-MID(C45,CHOOSE(LEN(C45)-LEN(SUBSTITUTE(C45,"/",""))+1,1,{1,4},{1,4,7},{1,4,7,10}),2)/100) -> 0.5472 | E45: =ROUND(D45*B45,2) -> 16.55
A46: Bellen | B46: 25.25 | C46: 10/10/08/18 | D46: =PRODUCT(1-MID(C46,CHOOSE(LEN(C46)-LEN(SUBSTITUTE(C46,"/",""))+1,1,{1,4},{1,4,7},{1,4,7,10}),2)/100) -> 0.611064 | E46: =ROUND(D46*B46,2) -> 15.43
A47: Carlota | B47: 21.95 | C47: 15/10/16/16 | D47: =PRODUCT(1-MID(C47,CHOOSE(LEN(C47)-LEN(SUBSTITUTE(C47,"/",""))+1,1,{1,4},{1,4,7},{1,4,7,10}),2)/100) -> 0.539784 | E47: 11.85
A48: Carlota Doublers | B48: 55.95 | C48: 05/05/08/08 | D48: =PRODUCT(1-MID(C48,CHOOSE(LEN(C48)-LEN(SUBSTITUTE(C48,"/",""))+1,1,{1,4},{1,4,7},{1,4,7,10}),2)/100) -> 0.763876 | E48: 42.74
A49: Majestic Beaut | B49: 23.95 | C49: 10/05/16/20 | D49: =PRODUCT(1-MID(C49,CHOOSE(LEN(C49)-LEN(SUBSTITUTE(C49,"/",""))+1,1,{1,4},{1,4,7},{1,4,7,10}),2)/100) -> 0.57456 | E49: 13.76
A50: Sunshine 5 Ply | B50: 19.25 | C50: 15/10/08/14 | D50: =PRODUCT(1-MID(C50,CHOOSE(LEN(C50)-LEN(SUBSTITUTE(C50,"/",""))+1,1,{1,4},{1,4,7},{1,4,7,10}),2)/100) -> 0.605268 | E50: 11.65
A51: Sunshine 10 Ply | B51: 20.5 | C51: 15/05/08/10 | D51: =PRODUCT(1-MID(C51,CHOOSE(LEN(C51)-LEN(SUBSTITUTE(C51,"/",""))+1,1,{1,4},{1,4,7},{1,4,7,10}),2)/100) -> 0.66861 | E51: 13.71
A52: Sunset | B52: 23.5 | C52: 15/15/14/08 | D52: =PRODUCT(1-MID(C52,CHOOSE(LEN(C52)-LEN(SUBSTITUTE(C52,"/",""))+1,1,{1,4},{1,4,7},{1,4,7,10}),2)/100) -> 0.571642 | E52: 13.43 | F52: {1,4,7,10} | G52: =LEN(C52)-LEN(SUBSTITUTE(C52,"/",""))+1 -> 4 | H52: =LEN(C52) -> 11 | I52: =LEN(SUBSTITUTE(C52,"/","")) -> 8 | J52: =H52-I52 -> 3
A53: Sunbell | B53: 26.95 | C53: 15/05/10 | D53: =PRODUCT(1-MID(C53,CHOOSE(LEN(C53)-LEN(SUBSTITUTE(C53,"/",""))+1,1,{1,4},{1,4,7},{1,4,7,10}),2)/100) -> 0.72675 | E53: 19.59 | F53: {1,4,7} | G53: =LEN(C53)-LEN(SUBSTITUTE(C53,"/",""))+1 -> 3 | H53: =LEN(C53) -> 8 | I53: =LEN(SUBSTITUTE(C53,"/","")) -> 6 | J53: =H53-I53 -> 2
A54: Flattop | B54: 20.95 | C54: 15/10 | D54: =PRODUCT(1-MID(C54,CHOOSE(LEN(C54)-LEN(SUBSTITUTE(C54,"/",""))+1,1,{1,4},{1,4,7},{1,4,7,10}),2)/100) -> 0.765 | E54: 16.03 | F54: {1,4} | G54: 2 | H54: 5 | I54: 4 | J54: 1
A55: Bellen Dancer | B55: 29.95 | C55: 10 | D55: =PRODUCT(1-MID(C55,CHOOSE(LEN(C55)-LEN(SUBSTITUTE(C55,"/",""))+1,1,{1,4},{1,4,7},{1,4,7,10}),2)/100) -> 0.9 | E55: 26.96 | F55: 1 | G55: 1 | H55: 2 | I55: 2 | J55: 0
A56: Bellen Wind Dancer | B56: 32.25 | C56: 15/05/18/06 | D56: =PRODUCT(1-MID(C56,CHOOSE(LEN(C56)-LEN(SUBSTITUTE(C56,"/",""))+1,1,{1,4},{1,4,7},{1,4,7,10}),2)/100) -> 0.622421 | E56: 20.07 | G56: 4
A57: GelFast | B57: 21.5 | C57: 05/15/10/16 | D57: =PRODUCT(1-MID(C57,CHOOSE(LEN(C57)-LEN(SUBSTITUTE(C57,"/",""))+1,1,{1,4},{1,4,7},{1,4,7,10}),2)/100) -> 0.61047 | E57: 13.13
A58: Phenolic Sunshine | B58: 35.5 | C58: 10/05/16/16 | D58: =PRODUCT(1-MID(C58,CHOOSE(LEN(C58)-LEN(SUBSTITUTE(C58,"/",""))+1,1,{1,4},{1,4,7},{1,4,7,10}),2)/100) -> 0.603288 | E58: 21.42
A59: Icarus MTA | B59: 35.25 | C59: 20/15/06/16 | D59: =PRODUCT(1-MID(C59,CHOOSE(LEN(C59)-LEN(SUBSTITUTE(C59,"/",""))+1,1,{1,4},{1,4,7},{1,4,7,10}),2)/100) -> 0.536928 | E59: 18.93
E132: 1
E133: 4
E134: 7 | F134: =SUBSTITUTE($C$27,"/","^",ROWS(F$134:F134)) -> 20^05/10/20 | G134: =SEARCH("^",F134)-1 -> 2
E135: 10 | F135: =SUBSTITUTE($C$27,"/","^",ROWS(F$134:F135)) -> 20/05^10/20 | G135: =SEARCH("^",F135)-1 -> 5
B136: Series Discount | C136: 20/5/1/20 | D136: =REPLACE(C136,SEARCH("/",C136)+1,0,0) -> 20/05/1/20 | F136: =SUBSTITUTE($C$27,"/","^",ROWS(F$134:F136)) -> 20/05/10^20 | G136: =SEARCH("^",F136)-1 -> 8
C137: =MID($C$136,3*ROWS(C$137:C137)-2,2)/100 -> 0.2 | E137: =1+(ROWS(E$137:E137)-1)*3 -> 1 | F137: =1+(3*ROWS(E$137:E137)-3) -> 1 | G137: =1+3*ROWS(E$137:E137)-3 -> 1 | H137: =3*ROWS(E$137:E137)-2 -> 1
C138: =MID($C$136,3*ROWS(C$137:C138)-2,2)/100 ->  | E138: =1+(ROWS(E$137:E138)-1)*3 -> 4 | F138: =1+(3*ROWS(E$137:E138)-3) -> 4 | G138: =1+3*ROWS(E$137:E138)-3 -> 4 | H138: =3*ROWS(E$137:E138)-2 -> 4
C139: =MID($C$136,3*ROWS(C$137:C139)-2,2)/100 ->  | E139: =1+(ROWS(E$137:E139)-1)*3 -> 7 | F139: =1+(3*ROWS(E$137:E139)-3) -> 7 | G139: =1+3*ROWS(E$137:E139)-3 -> 7 | H139: =3*ROWS(E$137:E139)-2 -> 7
C140: =MID($C$136,3*ROWS(C$137:C140)-2,2)/100 ->  | E140: =1+(ROWS(E$137:E140)-1)*3 -> 10 | F140: =1+(3*ROWS(E$137:E140)-3) -> 10 | G140: =1+3*ROWS(E$137:E140)-3 -> 10 | H140: =3*ROWS(E$137:E140)-2 -> 10
D142: =SUBSTITUTE($C$136,"/","/0",{1,2,3}) -> 20/05/1/20 | F142: =INDEX(SUBSTITUTE($C$136,"/","/0",{1,2,3}),ROWS(F$142:F142)) -> 20/05/1/20
D143: 20/05/1/20 | F143: =INDEX(SUBSTITUTE($C$136,"/","/0",{1,2,3}),ROWS(F$142:F143)) -> 20/5/01/20
D144: 20/05/1/20 | F144: =INDEX(SUBSTITUTE($C$136,"/","/0",{1,2,3}),ROWS(F$142:F144)) -> 20/5/1/020
D145: 20/05/1/20 | F145: =INDEX(SUBSTITUTE($C$136,"/","/0",{1,2,3}),ROWS(F$142:F145)) -> 
D147: Series Discount | E147: 20/5/10/20
E148: =SUBSTITUTE($E$147,"/","/0",ROWS(E$148:E148)) -> 20/05/10/20 | F148: =INDEX(SUBSTITUTE($E$147,"/","/0",{1,2,3}),ROWS(F$148:F148)) -> 20/05/10/20
E149: =SUBSTITUTE($E$147,"/","/0",ROWS(E$148:E149)) -> 20/5/010/20 | F149: =INDEX(SUBSTITUTE($E$147,"/","/0",{1,2,3}),ROWS(F$148:F149)) -> 20/5/010/20
E150: =SUBSTITUTE($E$147,"/","/0",ROWS(E$148:E150)) -> 20/5/10/020 | F150: =INDEX(SUBSTITUTE($E$147,"/","/0",{1,2,3}),ROWS(F$148:F150)) -> 20/5/10/020

Sheet (829)
A1: Bellen | B1: 25
A2: Carlota | B2: 22
A3: Quad | B3: 32.75
A5: Null Hypothesis | B5: H0 : | C5: Mu | D5: >= | E5: 20
A6: Alternative Hypothesis | B6: Ha : | C6: Mu | D6: < | E6: =E5 -> 20
A7: Alpha | B7: 0.05 | C7: Risk that we reject H0, when it is true. Accept Ha, but H0 is true
A8: Population Standard Deviation | B8: 2 | C8: Sigma
A9: Sample Size | B9: 50
A10: Xbar | B10: 19.4
A11: Critical Value | B11: =NORMSINV(B7) -> -1.644853627
A12: Rejection Rule | B12: If our calculated test statistic is less than or equal to -1.64485, we reject H0 and accept Ha, otherwise we fail to reject H0.
A13: Standard Error | B13: =B8/SQRT(B9) -> 0.2828427125
A14: Test Statistic | B14: =(B10-E5)/B13 -> -2.121320344
A15: Conclusion | B15: Because our calculated test statistic is less than -1.64485, we reject H0 and accept Ha. From or sample evidence it is reasonable to assume that mu is greater than 20.
A16: p-value | B16: =NORMSDIST(B14) -> 0.01694742676
A17: Conclusion | B17: Because the p-value of .01695 is less than .05, we reject H0 and accept Ha. From or sample evidence it is reasonable to assume that mu is greater than 20.
A19: Steps:
A20: 1 | B20: Shift + F2 = Inster Comment
A21: 2 | B21: Click on outside edge (see dots)
A22: 3 | B22: Ctrl + 1 to open Format Comment dialog box
A23: 4 | B23: Colors and Lines tab
A24: 5 | B24: Fill: Color
A25: 6 | B25: Fill Effects
A26: 7 | B26: Picture tab
A27: 8 | B27: Select Picture button

Sheet (829an)
A1: Bellen | B1: 25
A2: Carlota | B2: 22
A3: Quad | B3: 32.75
A5: Null Hypothesis | B5: H0 : | C5: Mu | D5: >= | E5: 20
A6: Alternative Hypothesis | B6: Ha : | C6: Mu | D6: < | E6: =E5 -> 20
A7: Alpha | B7: 0.05 | C7: Risk that we reject H0, when it is true. Accept Ha, but H0 is true
A8: Population Standard Deviation | B8: 2 | C8: Sigma
A9: Sample Size | B9: 50
A10: Xbar | B10: 19.4
A11: Critical Value | B11: =NORMSINV(B7) -> -1.644853627
A12: Rejection Rule | B12: If our calculated test statistic is less than or equal to -1.64485, we reject H0 and accept Ha, otherwise we fail to reject H0.
A13: Standard Error | B13: =B8/SQRT(B9) -> 0.2828427125
A14: Test Statistic | B14: =(B10-E5)/B13 -> -2.121320344
A15: Conclusion | B15: Because our calculated test statistic is less than -1.64485, we reject H0 and accept Ha. From or sample evidence it is reasonable to assume that mu is greater than 20.
A16: p-value | B16: =NORMSDIST(B14) -> 0.01694742676
A17: Conclusion | B17: Because the p-value of .01695 is less than .05, we reject H0 and accept Ha. From or sample evidence it is reasonable to assume that mu is greater than 20.
A19: Steps:
A20: 1 | B20: Shift + F2 = Inster Comment
A21: 2 | B21: Click on outside edge (see dots)
A22: 3 | B22: Ctrl + 1 to open Format Comment dialog box
A23: 4 | B23: Colors and Lines tab
A24: 5 | B24: Fill: Color
A25: 6 | B25: Fill Effects
A26: 7 | B26: Picture tab
A27: 8 | B27: Select Picture button
